Cogmind - Beta 10.2 *** ADVENTURER MODE // 2021.08.21 @ 01:38:13 Player: Nightmare Result: Destroyed by as-37160 with Assembled Rifle Performance ------------- Evolutions (0) 0 Regions Visited (2) 400 Robots Destroyed (3) 15 Value Destroyed (115) 115 Prototype IDs (1) 20 Alien Tech Used (0) 0 Bonus (0) 0 TOTAL SCORE: 550 Bonus ------- None Cogmind --------- Core Integrity 0/250 Matter 300/300 Energy 98/100 System Corruption 1% Temperature Cool (0) Movement Core (300) Ox5 Location -10/Mines Parts ------- > --- POWER (1) -------- (None) > --- PROPULSION (2) --- (None) > --- UTILITY (2) ------ Large Storage Unit ECM Suite > --- WEAPON (2) ------- (None) > --- INVENTORY (10) --- Aluminum Leg Peak State ------------ > --- POWER ------------ Ion Engine > --- PROPULSION ------- Wheel > --- UTILITY ---------- Bomb Drone Bay > --- WEAPON ----------- EM Pulse Gun Mining Laser > --- INVENTORY -------- Aluminum Leg Large Storage Unit [Rating: 18] Favorites ----------- Power Ion Engine Engine Ion Engine Propulsion Aluminum Leg Leg Aluminum Leg Wheel Wheel Utility Large Storage Unit Device Bomb Drone Bay Storage Large Storage Unit Weapon EM Pulse Gun Energy Gun EM Pulse Gun Ballistic Gun Light Assault Rifle Special Weapon Mining Laser Build | -11 -10 -10 ------- Run | Scr Mat Min Slots Evolved . | . . . Power . | . . . Propulsion . | . . . Utility . | . . . Weapon . | . . . Parts Attached 20 | 6 9 5 Power 2 | 1 1 . Engine 2 | 1 1 . Core . | . . . Reactor . | . . . Propulsion 4 | 3 1 . Treads . | . . . Leg 2 | 2 . . Wheel 2 | 1 1 . Hover . | . . . Flight . | . . . Utility 10 | . 5 5 Device 4 | . 1 3 Storage 6 | . 4 2 Processor . | . . . Hackware . | . . . Protection . | . . . Artifact . | . . . Weapon 4 | 2 2 . Energy Gun 1 | 1 . . Energy Cannon . | . . . Ballistic Gun 2 | 1 1 . Ballistic Cannon . | . . . Launcher . | . . . Special Weapon 1 | . 1 . Impact Weapon . | . . . Slashing Weapon . | . . . Piercing Weapon . | . . . Special Melee Weapon . | . . . Unidentified Prototypes 1 | . . 1 Parts Lost 5 | . 1 4 Power 2 | . 1 1 Propulsion 1 | . . 1 Utility . | . . . Weapon 2 | . . 2 Highest Loss Streak 4 | . 1 4 Average Slot Usage (%) 67 | . 67 66 Engine 12 | . 11 13 Leg 4 | . 9 . Wheel 8 | . 5 12 Device 8 | . 2 13 Storage 7 | . 9 5 Energy Gun 12 | . 14 10 Ballistic Gun 6 | . 13 . Special Weapon 5 | . . 10 Naked Turns . | . . . Heaviest Build 40 | 6 40 25 Greatest Support 10 | 10 10 10 Greatest Overweight (x) 7 | . 3 7 Average Overweight (x) . | . 1 1 Largest Inventory Capacity 16 | 4 16 10 Average Capacity 6 | 4 7 6 Most Carried 5 | 4 3 5 Average Carried 2 | 1 1 2 Final Capacity 10 | 4 10 10 Final Carried 2 | 2 2 1 Class Distribution -------------------- 100% | Mutant Dominant Class ---------------- Mutant | -10/Materials Mutant | -10/Mines Resources | -11 -10 -10 ----------- Run | Scr Mat Min Matter Collected 403 | 269 60 74 Remotely . | . . . Salvage Created 193 | 38 98 57 Parts 5 | 1 4 . Haulers Intercepted . | . . . Recyclers Shooed . | . . . Parts Field Recycled . | . . . Retrieved Matter . | . . . Parts Self-Destructed . | . . . Prevented . | . . . Kills | -11 -10 -10 ------- Run | Scr Mat Min Combat Hostiles Destroyed 6 | 1 2 3 Guns 6 | 1 2 3 Classes Destroyed 2 | 1 . 1 Grunt 3 | 1 2 . Assembled 3 | . . 3 Best Kill Streak 3 | 1 1 3 Combat Bots Only 3 | 1 1 3 Max Kills in Single Turn 1 | 1 1 1 Gunslinging . | . . . Exploded . | . . . Melee . | . . . Uniques/NPCs Destroyed . | . . . Combat | -11 -10 -10 -------- Run | Scr Mat Min Damage Taken 658 | 25 131 502 Core 252 | 9 51 192 Absorbed by Shields . | . . . Core Remaining (%) 96 | 96 . . Volleys Fired 29 | 9 9 11 Largest 2 | 2 2 1 Hottest 60 | 60 60 40 Shots Fired 43 | 14 18 11 Gun 43 | 14 18 11 Cannon . | . . . Launcher . | . . . Special . | . . . Kinetic 18 | 9 9 . Thermal . | . . . Explosive . | . . . Electromagnetic 25 | 5 9 11 Robot Hit Streak 9 | 9 7 4 Robot Miss Streak 2 | 1 1 2 Penetration Max . | . . . Secondary Targets 1 | . 1 . Max Gunslinging Chain 1 | . 1 . Shots Hit Robots 33 | 12 14 7 Core Hits 14 | 5 4 5 Critical Hits . | . . . Critical Kills . | . . . Critical Parts Destroyed . | . . . Melee Attacks . | . . . Impact . | . . . Slashing . | . . . Piercing . | . . . Sneak Attacks . | . . . Combat Hostiles . | . . . Follow-up Attacks . | . . . Damage Inflicted 363 | 116 158 89 Guns 363 | 116 158 89 Cannons . | . . . Explosions . | . . . Melee . | . . . Ramming . | . . . Kinetic 111 | 61 50 . Thermal . | . . . Explosive . | . . . Electromagnetic 252 | 55 108 89 Impact . | . . . Slashing . | . . . Piercing . | . . . Highest Corruption 1 | . 1 1 Average Corruption 1 | . 1 1 Corruption Purged . | . . . Overload Shots . | . . . Overflow Damage . | . . . Projectiles . | . . . Explosions . | . . . Melee . | . . . Knockbacks . | . . . Impact . | . . . Kinetic . | . . . Secondary . | . . . Self-Inflicted Damage . | . . . Shots . | . . . Rammed . | . . . Targets Rammed . | . . . Kicked . | . . . Crushed . | . . . Highest Temperature 140 | 32 94 140 Average Temperature 60 | 18 61 92 Received Heat Transfer 254 | 18 96 140 Siege Activations . | . . . Robots Corrupted . | . . . Combat Hostiles . | . . . Parts Fried . | . . . Impact Corruptions . | . . . Robots Melted . | . . . Combat Hostiles . | . . . Parts Melted . | . . . Heat Transferred . | . . . Parts Sabotaged . | . . . Parts Stolen . | . . . Parts Stripped . | . . . Power Chain Reactions . | . . . Missiles Intercepted . | . . . Alert | -11 -10 -10 ------- Run | Scr Mat Min Peak Influence 63 | 20 63 20 Initial 20 | . 11 20 Average 18 | 5 44 2 Maximum Alert Level . | . . . Low Security (%) 100 | 100 100 100 Level 1 . | . . . Level 2 . | . . . Level 3 . | . . . Level 4 . | . . . Level 5 . | . . . High Security . | . . . Max Security . | . . . Squads Dispatched . | . . . Investigation . | . . . Extermination . | . . . Reinforcement . | . . . Assault . | . . . Garrison . | . . . Intercept . | . . . Construction Impeded . | . . . Haulers Reinforced . | . . . Stealth | -11 -10 -10 --------- Run | Scr Mat Min Distress Signals . | . . . Communications Jammed . | . . . Distress Signals . | . . . Times Spotted 11 | 1 2 8 Peak Tracking Total 5 | 1 2 5 Tactical Retreats . | . . . Traps | -11 -10 -10 ------- Run | Scr Mat Min Traps Triggered 1 | . 1 . Indirectly . | . . . Trap Hack Attempts . | . . . Triggered . | . . . Disarmed . | . . . Reprogrammed . | . . . Reused . | . . . Traps Extracted . | . . . Installed . | . . . Triggered . | . . . Machines | -11 -10 -10 ---------- Run | Scr Mat Min Machines Disabled . | . . . Max in Single Turn . | . . . Machines Sabotaged . | . . . Garrisons Compromised . | . . . Overloaded Fab Kills . | . . . Fab Network Shutdowns . | . . . Hacking | -11 -10 -10 --------- Run | Scr Mat Min Machines Accessed 3 | . 1 2 Terminals 2 | . 1 1 Fabricators . | . . . Repair Stations . | . . . Recycling Units . | . . . Scanalyzers . | . . . Garrison Access . | . . . Total Hacks 7 | . 4 3 Successful 4 | . 1 3 Failed 3 | . 3 . Catastrophic . | . . . Database Lockouts . | . . . Manual . | . . . Terminals 6 | . 4 2 Fabricators . | . . . Repair Stations . | . . . Recycling Units . | . . . Scanalyzers . | . . . Garrison Access . | . . . Terminal Hacks 4 | . 1 3 Record 1 | . . 1 Open Door 1 | . . 1 Emergency Access Points 1 | . 1 . Zone Layout 1 | . . 1 Fabricator Hacks . | . . . Repair Station Hacks . | . . . Recycling Unit Hacks . | . . . Scanalyzer . | . . . Garrison Access Hacks . | . . . Unauthorized Hacks . | . . . Terminals . | . . . Fabricators . | . . . Repair Stations . | . . . Recycling Units . | . . . Scanalyzers . | . . . Garrison Access . | . . . Data Cores Recovered . | . . . Used . | . . . Hacking Detections 1 | . 1 . Full Trace Events . | . . . Feedback Events . | . . . Feedback Blocked . | . . . Robot Schematics Acquired . | . . . Robots Built . | . . . Matter . | . . . Time . | . . . Total Robot Build Rating . | . . . Part Schematics Acquired . | . . . Parts Built . | . . . Matter . | . . . Time . | . . . Total Part Build Rating . | . . . Parts Repaired . | . . . Time . | . . . Parts Recycled . | . . . Recycled Matter . | . . . Retrieved Matter . | . . . Retrieved Components . | . . . Parts Scanalyzed . | . . . Part Schematics Acquired . | . . . Parts Damaged . | . . . Bothacking | -11 -10 -10 ------------ Run | Scr Mat Min Used RIF Installer . | . . . Robots Hacked . | . . . Non-combat . | . . . Combat . | . . . Robot Hacks Applied . | . . . Relay Couplers Released . | . . . Robots Rewired . | . . . Allies Hacked . | . . . Hacks Repelled . | . . . Allies | -11 -10 -10 -------- Run | Scr Mat Min Total Allies . | . . . Largest Group . | . . . Highest-Rated Group . | . . . Highest-Rated Ally . | . . . Total Orders . | . . . Ally Attacks 15 | . . 15 Total Damage . | . . . Kills . | . . . Allies Corrupted . | . . . Allies Melted . | . . . Intel | -11 -10 -10 ------- Run | Scr Mat Min Robot Analysis Total . | . . . Derelict Logs Recovered . | . . . Drone Launches 16 | . . 16 Drone Recoveries . | . . . Exploration | -11 -10 -10 ------------- Run | Scr Mat Min Turns Passed 458 | 124 160 174 Spaces Moved 308 | 81 102 125 Core 18 | 14 . 4 Treads . | . . . Legs 121 | 67 54 . Wheels 169 | . 48 121 Hover . | . . . Flight . | . . . Fastest Speed 50 | 50 100 90 Average Speed 106 | 107 113 100 Slowest Speed 400 | 120 150 400 Overloaded Moves . | . . . Propulsion Burnouts . | . . . Robots Hopped . | . . . Cave-ins Triggered . | . . . Exploration Rate (%) 22 | 9 18 40 Regions Visited 2 Branch Regions 1 Pre-discovered Areas . | . . . Known Exits Taken . | . . . Unknown Exits Taken 2 | 1 1 . Scrap Searched . | . . . Spaces Dug . | . . . Terrain Destroyed . | . . . Melee . | . . . Projectile . | . . . AOE . | . . . Terrain Rammed . | . . . Walls Destroyed . | . . . Machines Disabled . | . . . Actions | -11 -10 -10 --------- Run | Scr Mat Min Total 405 | 107 133 165 Wait 14 | 1 . 13 Move 306 | 80 101 125 Hop . | . . . Pick Up 20 | 8 7 5 Fast Attach . | . . . Attach 20 | 6 9 5 Detach 4 | 1 3 . Swap . | . . . Drop 12 | 2 4 6 Fire 29 | 9 9 11 Melee . | . . . Ram . | . . . Kick . | . . . Crush . | . . . Escape Stasis . | . . . Rewire . | . . . Trap . | . . . Miscellaneous . | . . . Route ------- -11/Scrapyard -10/Materials -10/Mines History --------- Turn | Location | Event 2 | -11/Scrapyard | Met Revision 17 74 | -11/Scrapyard | Discovered new exit (range 8) 125 | -11/Scrapyard | Entered Materials 247 | -10/Materials | Discovered new exit (range 14) 285 | -10/Materials | Entered Mines 286 | -10/Mines | Assembled infested the area 289 | -10/Mines | Found the Drone Emporium 294 | -10/Mines | Found Prototype Device 297 | -10/Mines | Identified Bomb Drone Bay 318 | -10/Mines | Build established: Mutant 441 | -10/Mines | Core integrity fell below 50% 452 | -10/Mines | Core integrity fell below 20% 459 | -10/Mines | Destroyed by as-37160 with Assembled Rifle Last Messages --------------- as-27645 destroyed. Bomb Drone destroyed. Connecting with Terminal... Acquired 11 matter. Dropped Bomb Drone Bay. as-14612 destroyed. The unstable cave ceiling collapses. as-76243 destroyed. Mining Laser destroyed. The unstable cave ceiling collapses. as-10716 destroyed. EM Pulse Gun destroyed. Acquired 19 matter. Acquired 6 matter. The unstable cave ceiling collapses. Wheel destroyed. Ion Engine destroyed. The unstable cave ceiling collapses. Knocked back. [Achievement: First Step to Greatness] Map ----- +----------------------------------------------------+ | ???????? #???????????????????????????????????????? | | ???????? #???????????????????????????????????????? | | ???##### #????????????? ?????????????????????????? | | #### #??????????? ????????????????????????? | | ##????????? ????????????????????????? | | # #????????? ????????????????????????? | | ##????????? #???????????????????????? | | # # #?????????# #??????????????????????? | | ##??????????# #?????????????????????? | | # # # #???????????# ##????????????????????? | | # # ## #???????????# ##???????????????????? | | # # #?????????#### %###?????????????????? | | # ##?????????# #########?????????? | | #?????????## # # #?????????? | | ##????????## ###### #?? | | #???????## !%*=! #?? | | # #??????## % !=!%|% #?? | | ## ##?????## ###??????? | | ?## ####### # #???????? | | ### ## # ##???????? | | #"" #?# ##???????? | | " #X ### ##?## % # ##??????? | | " #????##???# a ### ##?????? | | " #????????## aa ##????? | | " # #??????### ##???? | | #""## #?????## !<@ # # #???? | | ####### #?????# ## #???? | | ??????# ## #????## ## #??? | | ??????# #?# #?????# ### % ### ??? | | #####?# #??# #???### #####?# #??## ??? | | # ### ##??##???# ! =#???# ##????? ???? | | ! ! ##??????# """ #??## #??????? ???? | | = #??????# """ #??# #???????????? | | # #??????# """ #??# #???????????? | | # ! ####??????#= = ##?## %! # #???????????? | | ##?????????# ! T#### #####???????????? | | ##??????###### ##### = #???????????????? | | ##???????## % #???????????????? | | #???????## #### #???????????????? | | # #???##### ## #### ####????????????? | | ##* ##### # #????????????? | | ?# ## ### #????????????? | | ?# #### ##?# #????????????? | | ?## ##?# # #??# """ #????????????? | | ?## ##??## ##??# """ #????????????? | | ?# ##????# # ##??# """ #????????????? | | ?# ###?????### # #####??# #????????????? | | ?## ##?????????#####??????# #????????????? | | ??####?????????????????????##########????????????? | | ?????????????????????????????????????????????????? | +----------------------------------------------------+ Best States ------------- Heat Dissipation 25 Energy Generation 10 Energy Capacity 250 Matter Stores 300 Matter Capacity 300 Sight Range 16 Terrain Scan Density 10 ECM Strength 1 Resistance: KI 20 Resistance: TH 20 Resistance: EX 20 Resistance: EM 20 Resistance: I 20 Resistance: S 20 Resistance: P 20 Evasion (%) 50 Offensive Hacking 10 Item Schematics ----------------- None Robot Schematics ------------------ None Fabricated ------------ Nothing Alien Tech Used ----------------- None Achievements -------------- First Step to Greatness Release The Drones! Risk Taker Challenges ------------ None Game ------ Seed PortableRelayRay Manual? 0 Play Time 00:53:31 Cumulative 1.7 hours Start 2021.08.21 @ 00:29:19 End 2021.08.21 @ 01:38:13 Sessions 1 Manual Loads 0 Difficulty Adventurer Special Mode None Game No. 1 Rogue 0 Adventurer 1 Explorer 0 Win Type - Total 0 Types 0/0/0/0/0/0/0/0/0 Lore% 0 Gallery% 1 Achievement% 1 Wizard Run 0 Options --------- ASCII 0 Keyboard 0 Movement Mouse Keybinds 0 Fullscreen 1 Font 24/Smallcaps Map View 113x50 Tactical HUD 0 Map Filters NONE Filters NONE Steam 1 RUN: 1fd2abd8-7df3-4808-9ac3-8d7887a1deb0